fUSD/lending_fUSD_20240217
["ID","MTS","AMOUNT","RATE_DAILY","PERIOD"]
[314301035,1708164663285,-500.0,0.00050958,60]
[314301036,1708164663294,-415.42552223,0.00050958,60]
[314301037,1708164663303,-500.0,0.00050958,60]
[314301038,1708164663311,-500.0,0.00050958,2]
[314301039,1708164663321,-500.0,0.00050958,7]
[314301040,1708164663330,-500.0,0.00050958,60]
[314301041,1708164663339,-500.0,0.00050958,60]
[314301042,1708164663348,-500.0,0.00050958,2]
[314301043,1708164663358,-500.0,0.00050958,60]
[314301044,1708164663367,-500.0,0.00050958,2]
[314301045,1708164663376,-711.3,0.00050958,2]
[314301046,1708164663385,-500.0,0.00050958,60]
[314301047,1708164663394,-500.0,0.00050958,60]
[314301048,1708164663403,-500.0,0.00050958,60]
[314301049,1708164663413,-500.0,0.00050958,60]
[314301050,1708164663422,-473.2,0.00050958,60]
[314301051,1708164663431,-500.0,0.00050958,60]
[314301052,1708164663442,-500.0,0.00050958,60]
[314301053,1708164663451,-500.0,0.00050958,60]
[314301054,1708164663460,-500.0,0.00050958,60]
[314301055,1708164663470,-594.40351932,0.00050958,60]
[314301056,1708164663479,-500.0,0.00050958,60]
[314301057,1708164663489,-500.0,0.00050958,60]
[314301058,1708164663498,-150.0,0.00050958,60]
[314301059,1708164663507,-500.0,0.00050958,60]
[314301060,1708164663516,-162.29154161,0.00050958,60]
[314301061,1708164663525,-500.0,0.00050958,60]
[314301062,1708164663535,-500.0,0.00050958,2]
[314301063,1708164663544,-500.0,0.00050958,60]
[314301064,1708164663553,-500.0,0.00050958,60]
[314301065,1708164663562,-562.76188863,0.00050958,60]
[314301066,1708164663571,-500.0,0.00050958,60]
[314301067,1708164663581,-500.0,0.00050958,60]
[314301068,1708164663590,-500.0,0.00050958,60]
[314301069,1708164663600,-500.0,0.00050958,7]
[314301070,1708164663609,-500.0,0.00050958,60]
[314301071,1708164663618,-500.0,0.00050958,60]
[314301072,1708164663627,-500.0,0.00050958,60]
[314301073,1708164663637,-500.0,0.00050958,60]
[314301074,1708164663646,-500.0,0.00050958,60]
[314301075,1708164663655,-784.42,0.00050958,60]
[314301076,1708164663664,-500.0,0.00050958,60]
[314301077,1708164663674,-962.96,0.00050958,60]
[314301078,1708164663684,-2128.31,0.00050958,60]
[314301079,1708164663695,-500.0,0.00050958,60]
[314301080,1708164663705,-500.0,0.00050958,60]
[314301081,1708164663714,-472.46893338,0.00050958,60]
[314301082,1708164663724,-500.0,0.00050958,60]
[314301083,1708164663733,-500.0,0.00050958,60]
[314301084,1708164663742,-500.0,0.00050958,60]
[314301085,1708164663751,-500.0,0.00050958,60]
[314301086,1708164663761,-3483.63,0.00050958,60]
[314301087,1708164663770,-500.0,0.00050958,60]
[314301088,1708164663779,-500.0,0.00050958,60]
[314301089,1708164663788,-500.0,0.00050958,60]
[314301090,1708164663798,-500.0,0.00050958,60]
[314301091,1708164663808,-621.1,0.00050958,60]
[314301092,1708164663818,-500.0,0.00050958,60]
[314301093,1708164663827,-500.0,0.00050958,60]
[314301094,1708164663837,-500.0,0.00050958,60]
[314301095,1708164663846,-500.0,0.00050958,60]
[314301096,1708164663856,-2210.94,0.00050958,60]
[314301097,1708164663866,-500.0,0.00050958,60]
[314301098,1708164663877,-500.0,0.00050958,60]
[314301099,1708164663889,-500.0,0.00050958,60]
[314301100,1708164663898,-500.0,0.00050958,60]
[314301101,1708164663908,-500.0,0.00050958,60]
[314301102,1708164663918,-500.0,0.00050958,60]
[314301103,1708164663927,-822.01,0.00050958,14]
[314301104,1708164663937,-500.0,0.00050958,60]
[314301105,1708164663948,-1288.91,0.00050958,60]
[314301106,1708164663957,-350.79666112,0.00050958,60]
[314301107,1708164663967,-4501.31,0.00050958,60]
[314301108,1708164663978,-195.90240329,0.00050958,60]
[314301109,1708164663987,-500.0,0.00050958,60]
[314301110,1708164663996,-542.68,0.00050958,60]
[314301111,1708164664006,-500.0,0.00050958,60]
[314301112,1708164664016,-500.0,0.00050958,60]
[314301113,1708164664025,-500.0,0.00050958,60]
[314301114,1708164664034,-500.0,0.00050958,60]
[314301115,1708164664043,-500.0,0.00050958,60]
[314301116,1708164664053,-271.01725154,0.00050958,60]
[314301117,1708164664063,-500.0,0.00050958,60]
[314301118,1708164664072,-500.0,0.00050958,60]
[314301119,1708164664082,-500.0,0.00050958,60]
[314301120,1708164664091,-500.0,0.00050958,60]
[314301121,1708164664100,-615.51,0.00050958,60]
[314301122,1708164664110,-500.0,0.00050958,60]
[314301123,1708164664119,-500.0,0.00050958,60]
[314301124,1708164664129,-1497.63,0.00050958,60]
[314301125,1708164664138,-7291.56,0.00050958,60]
[314301126,1708164664148,-500.0,0.00050958,60]
[314301127,1708164664159,-500.0,0.00050958,60]
[314301128,1708164664168,-500.0,0.00050958,60]
[314301129,1708164664178,-500.0,0.00050958,60]
[314301130,1708164664188,-652.98,0.00050958,60]
[314301131,1708164664198,-500.0,0.00050958,60]
[314301132,1708164664208,-203.90726346,0.00050958,60]
[314301133,1708164664217,-500.0,0.00050958,60]
[314301134,1708164664227,-500.0,0.00050958,60]
[314301135,1708164664237,-802.38,0.00050958,60]
[314301136,1708164664246,-233.59221271,0.00050958,60]
[314301137,1708164664255,-1324.79,0.00050958,60]
[314301138,1708164664265,-791.76,0.00050958,60]
[314301139,1708164664274,-421.74864043,0.00050958,60]
[314301140,1708164664284,-785.4,0.00050958,60]
[314301141,1708164664294,-500.0,0.00050958,60]
[314301142,1708164664303,-500.0,0.00050958,60]
[314301143,1708164664312,-500.0,0.00050958,60]
[314301144,1708164664321,-500.0,0.00050958,60]
[314301145,1708164664330,-500.0,0.00050958,60]
[314301146,1708164664339,-261.19416772,0.00050958,60]
[314301147,1708164664349,-500.0,0.00050958,60]
[314301148,1708164664358,-500.0,0.00050958,60]
[314301149,1708164664368,-500.0,0.00050958,60]
[314301150,1708164664378,-500.0,0.00050958,60]
[314301151,1708164664387,-1013.43,0.00050958,60]
[314301152,1708164664396,-500.0,0.00050958,60]
[314301153,1708164664405,-17904.28,0.00050958,60]
[314301154,1708164664414,-500.0,0.00050958,60]
[314301155,1708164664424,-5229.57,0.00050958,60]
[314301156,1708164664433,-500.0,0.00050958,60]
[314301157,1708164664443,-500.0,0.00050958,60]
[314301158,1708164664453,-500.0,0.00050958,60]
[314301159,1708164664462,-500.0,0.00050958,60]
[314301160,1708164664471,-500.0,0.00050958,60]
[314301161,1708164664481,-620.70328751,0.00050958,60]
[314301162,1708164664490,-500.0,0.00050958,60]
[314301163,1708164664500,-500.0,0.00050958,60]
[314301164,1708164664509,-500.0,0.00050958,60]
[314301165,1708164664519,-713.58,0.00050958,60]
[314301166,1708164664529,-500.0,0.00050958,60]
[314301167,1708164664538,-500.0,0.00050958,60]
[314301168,1708164664547,-500.0,0.00050958,60]
[314301169,1708164664557,-500.0,0.00050958,60]
[314301170,1708164664566,-500.0,0.00050958,60]
[314301171,1708164664576,-586.76,0.00050958,60]
[314301172,1708164664585,-537.63,0.00050958,60]
[314301173,1708164664594,-289.25224024,0.00050958,60]
[314301174,1708164664603,-471.99956181,0.00050958,60]
[314301175,1708164664612,-500.0,0.00050958,60]
[314301176,1708164664621,-500.0,0.00050958,60]
[314301177,1708164664631,-323.4775181,0.00050958,60]
[314301178,1708164664641,-500.0,0.00050958,60]
[314301179,1708164664650,-200.0,0.00050987,79]
[314301180,1708164664659,-200.0,0.00050987,75]
[314301181,1708164664669,-200.0,0.00050987,73]
[314301182,1708164664678,-300.0,0.00051,51]
[314301183,1708164664689,-3264.90727852,0.00051,15]
[314301184,1708164664698,-6238.39,0.00051,30]
[314301185,1708164664708,-188.0,0.00051011,60]
[314301186,1708164664717,-205.0,0.00051019,26]
[314301187,1708164664726,-262.62270052,0.0005102,2]
[314301188,1708164664736,-158.23203844,0.0005105,60]
[314301189,1708164664746,-158.23203844,0.00051052,60]
[314301190,1708164664756,-200.0,0.00051085,30]
[314301191,1708164664766,-1000.0,0.00051122,4]
[314301192,1708164664775,-223.021788,0.00051148,101]
[314301193,1708164664784,-742.67,0.0005117,30]
[314301194,1708164664795,-153.62677801,0.00051221,49]
[314301195,1708164664805,-3264.09059697,0.00051221,14]
[314301196,1708164664814,-10010.22237597,0.00051224,120]
[314301197,1708164664823,-800.0,0.0005123,30]
[314301198,1708164664832,-531.64082434,0.00051232,60]
[314301199,1708164664841,-500.0,0.00051232,60]
[314301200,1708164664850,-500.0,0.00051232,2]
[314301201,1708164664859,-500.0,0.00051232,60]
[314301202,1708164664870,-500.0,0.00051232,60]
[314301203,1708164664881,-500.0,0.00051232,60]
[314301204,1708164664890,-500.0,0.00051232,2]
[314301205,1708164664900,-500.0,0.00051232,60]
[314301206,1708164664909,-500.0,0.00051232,60]
[314301207,1708164664918,-500.0,0.00051232,60]
[314301208,1708164664927,-500.0,0.00051232,60]
[314301209,1708164664937,-500.0,0.00051232,2]
[314301210,1708164664947,-242.50646495,0.00051232,7]
[314301211,1708164664957,-500.0,0.00051232,60]
[314301212,1708164664967,-500.0,0.00051232,60]
[314301213,1708164664976,-500.0,0.00051232,2]
[314301214,1708164664985,-500.0,0.00051232,60]
[314301215,1708164664995,-500.0,0.00051232,2]
[314301216,1708164665005,-711.3,0.00051232,2]
[314301217,1708164665014,-446.90114453,0.00051232,60]
[314301218,1708164665023,-434.13,0.00051232,60]
[314301219,1708164665032,-500.0,0.00051232,60]
[314301220,1708164665042,-500.0,0.00051232,60]
[314301221,1708164665052,-500.0,0.00051232,60]
[314301222,1708164665062,-500.0,0.00051232,60]
[314301223,1708164665072,-500.0,0.00051232,60]
[314301224,1708164665082,-500.0,0.00051232,60]
[314301225,1708164665091,-500.0,0.00051232,60]
[314301226,1708164665208,-500.0,0.00051232,60]
[314301227,1708164665218,-150.0,0.00051232,60]
[314301228,1708164665227,-500.0,0.00051232,60]
[314301229,1708164665237,-500.0,0.00051232,60]
[314301230,1708164665247,-500.0,0.00051232,2]
[314301231,1708164665257,-500.0,0.00051232,60]
[314301232,1708164665266,-500.0,0.00051232,60]
[314301233,1708164665276,-500.0,0.00051232,60]
[314301234,1708164665286,-618.32539217,0.00051232,60]
[314301235,1708164665295,-500.0,0.00051232,60]
[314301236,1708164665304,-500.0,0.00051232,7]
[314301237,1708164665314,-500.0,0.00051232,60]
[314301238,1708164665323,-611.77321654,0.00051232,60]
[314301239,1708164665333,-500.0,0.00051232,60]
[314301240,1708164665342,-500.0,0.00051232,60]
[314301241,1708164665352,-500.0,0.00051232,60]
[314301242,1708164665362,-784.42,0.00051232,60]
[314301243,1708164665371,-500.0,0.00051232,60]
[314301244,1708164665382,-962.96,0.00051232,60]
[314301245,1708164665391,-2128.31,0.00051232,60]
[314301246,1708164665400,-500.0,0.00051232,60]
[314301247,1708164665409,-500.0,0.00051232,60]
[314301248,1708164665418,-500.0,0.00051232,60]
[314301249,1708164665428,-390.57033283,0.00051232,60]
[314301250,1708164665437,-500.0,0.00051232,60]
[314301251,1708164665448,-500.0,0.00051232,60]
[314301252,1708164665457,-3483.63,0.00051232,60]
[314301253,1708164665467,-500.0,0.00051232,60]
[314301254,1708164665476,-500.0,0.00051232,60]
[314301255,1708164665485,-500.0,0.00051232,60]
[314301256,1708164665494,-500.0,0.00051232,60]
[314301257,1708164665503,-621.1,0.00051232,60]
[314301258,1708164665513,-500.0,0.00051232,60]
[314301259,1708164665523,-500.0,0.00051232,60]
[314301260,1708164665533,-500.0,0.00051232,60]
[314301261,1708164665542,-500.0,0.00051232,60]
[314301262,1708164665552,-2210.94,0.00051232,60]
[314301263,1708164665561,-500.0,0.00051232,60]
[314301264,1708164665571,-500.0,0.00051232,60]
[314301265,1708164665581,-500.0,0.00051232,60]
[314301266,1708164665590,-500.0,0.00051232,60]
[314301267,1708164665600,-500.0,0.00051232,60]
[314301268,1708164665610,-500.0,0.00051232,60]
[314301269,1708164665619,-822.01,0.00051232,14]
[314301270,1708164665628,-500.0,0.00051232,60]
[314301271,1708164665638,-1288.91,0.00051232,60]
[314301272,1708164665648,-4501.31,0.00051232,60]
[314301273,1708164665657,-500.0,0.00051232,60]
[314301274,1708164665667,-542.68,0.00051232,60]
[314301275,1708164665677,-500.0,0.00051232,60]
[314301276,1708164665687,-500.0,0.00051232,60]
[314301277,1708164665698,-500.0,0.00051232,60]
[314301278,1708164665708,-500.0,0.00051232,60]
[314301279,1708164665717,-500.0,0.00051232,60]
[314301280,1708164665727,-500.0,0.00051232,60]
[314301281,1708164665736,-500.0,0.00051232,60]
[314301282,1708164665746,-500.0,0.00051232,60]
[314301283,1708164665755,-284.85464846,0.00051232,60]
[314301284,1708164665764,-615.51,0.00051232,60]
[314301285,1708164665774,-500.0,0.00051232,60]
[314301286,1708164665783,-500.0,0.00051232,60]
[314301287,1708164665793,-1497.63,0.00051232,60]
[314301288,1708164665802,-7291.56,0.00051232,60]
[314301289,1708164665811,-500.0,0.00051232,60]
[314301290,1708164665822,-500.0,0.00051232,60]
[314301291,1708164665831,-500.0,0.00051232,60]
[314301292,1708164665841,-500.0,0.00051232,60]
[314301293,1708164665850,-652.98,0.00051232,60]
[314301294,1708164665859,-500.0,0.00051232,60]
[314301295,1708164665870,-500.0,0.00051232,60]
[314301296,1708164665883,-500.0,0.00051232,60]
[314301297,1708164665892,-802.38,0.00051232,60]
[314301298,1708164665902,-1324.79,0.00051232,60]
[314301299,1708164665911,-791.76,0.00051232,60]
[314301300,1708164665921,-785.4,0.00051232,60]
[314301301,1708164665930,-500.0,0.00051232,60]
[314301302,1708164665940,-500.0,0.00051232,60]
[314301303,1708164665950,-468.33368887,0.00051232,60]
[314301304,1708164665960,-500.0,0.00051232,60]
[314301305,1708164665971,-572.06452508,0.00051232,60]
[314301306,1708164665981,-500.0,0.00051232,60]
[314301307,1708164665991,-500.0,0.00051232,60]
[314301308,1708164666001,-500.0,0.00051232,60]
[314301309,1708164666012,-500.0,0.00051232,60]
[314301310,1708164666021,-1013.43,0.00051232,60]
[314301311,1708164666031,-500.0,0.00051232,60]
[314301312,1708164666041,-17904.28,0.00051232,60]
[314301313,1708164666050,-500.0,0.00051232,60]
[314301314,1708164666060,-5229.57,0.00051232,60]
[314301315,1708164666070,-500.0,0.00051232,60]
[314301316,1708164666079,-500.0,0.00051232,60]
[314301317,1708164666090,-500.0,0.00051232,60]
[314301318,1708164666100,-500.0,0.00051232,60]
[314301319,1708164666109,-500.0,0.00051232,60]
[314301320,1708164666119,-500.0,0.00051232,60]
[314301321,1708164666128,-500.0,0.00051232,60]
[314301322,1708164666138,-500.0,0.00051232,60]
[314301323,1708164666148,-713.58,0.00051232,60]
[314301324,1708164666158,-500.0,0.00051232,60]
[314301325,1708164666168,-500.0,0.00051232,60]
[314301326,1708164666177,-500.0,0.00051232,60]
[314301327,1708164666188,-500.0,0.00051232,60]
[314301328,1708164666199,-500.0,0.00051232,60]
[314301329,1708164666208,-586.76,0.00051232,60]
[314301330,1708164666218,-537.63,0.00051232,60]
[314301331,1708164666227,-500.0,0.00051232,60]
[314301332,1708164666236,-500.0,0.00051232,60]
[314301333,1708164666245,-500.0,0.00051232,60]
[314301334,1708164666254,-370.0,0.00051285,30]
[314301335,1708164666264,-25000.0,0.000514,120]
[314301336,1708164666273,-206.88,0.000514,7]
[314301337,1708164666283,-223.021788,0.00051448,101]
[314301338,1708164666292,-3000.0,0.000515,45]
[314301339,1708164666302,-5000.0,0.000515,60]
[314301340,1708164666311,-3000.0,0.000515,45]
[314301341,1708164666320,-5000.0,0.000515,60]
[314301342,1708164666330,-17515.0,0.000515,120]
[314301343,1708164666339,-154.89,0.000515,7]
[314301344,1708164666349,-154.89,0.000515,7]
[314301345,1708164666358,-153.5,0.000515,7]
[314301346,1708164666368,-153.5,0.000515,7]
[314301347,1708164666378,-153.5,0.000515,7]
[314301348,1708164666387,-153.5,0.000515,7]
[314301349,1708164666397,-153.5,0.000515,7]
[314301350,1708164666406,-153.5,0.000515,7]
[314301351,1708164666416,-153.5,0.000515,7]
[314301352,1708164666425,-153.5,0.000515,7]
[314301353,1708164666435,-153.5,0.000515,7]
[314301354,1708164666445,-153.5,0.000515,7]
[314301355,1708164666454,-153.5,0.000515,7]
[314301356,1708164666464,-153.5,0.000515,7]
[314301357,1708164666474,-153.5,0.000515,7]
[314301358,1708164666484,-153.5,0.000515,7]
[314301359,1708164666493,-153.5,0.000515,7]
[314301360,1708164666502,-153.5,0.000515,7]
[314301361,1708164666512,-153.5,0.000515,7]
[314301362,1708164666521,-500.0,0.00051506,60]
[314301363,1708164666530,-500.0,0.00051506,2]
[314301364,1708164666539,-500.0,0.00051506,60]
[314301365,1708164666549,-225.60349846,0.00051506,60]
[314301366,1708164666558,-186.67227979,0.00051506,60]
[314301367,1708164666567,-500.0,0.00051506,2]
[314301368,1708164666577,-500.0,0.00051506,60]
[314301369,1708164666586,-500.0,0.00051506,60]
[314301370,1708164666596,-500.0,0.00051506,60]
[314301371,1708164666606,-98422.396791,0.00051506,30]
[314301372,1708164666615,-500.0,0.00051506,60]
[314301373,1708164666624,-500.0,0.00051506,2]
[314301374,1708164666633,-13492.608804,0.00051506,120]
[314301375,1708164666642,-500.0,0.00051506,60]
[314301376,1708164666651,-500.0,0.00051506,60]
[314301377,1708164666660,-500.0,0.00051506,2]
[314301378,1708164666669,-500.0,0.00051506,60]
[314301379,1708164666679,-500.0,0.00051506,2]
[314301380,1708164666688,-711.3,0.00051506,2]
[314301381,1708164666699,-228.14314416,0.00051506,60]
[314301382,1708164666708,-500.0,0.00051506,60]
[314301383,1708164666718,-500.0,0.00051506,60]
[314301384,1708164666727,-500.0,0.00051506,60]
[314301385,1708164666736,-200.5,0.00051506,60]
[314301386,1708164666745,-500.0,0.00051506,60]
[314301387,1708164666754,-2030.525,0.00051506,7]
[314301388,1708164666763,-500.0,0.00051506,60]
[314301389,1708164666772,-500.0,0.00051506,60]
[314301390,1708164666781,-150.0,0.00051506,60]
[314301391,1708164666791,-500.0,0.00051506,60]
[314301392,1708164666800,-500.0,0.00051506,60]
[314301393,1708164666811,-500.0,0.00051506,2]
[314301394,1708164666821,-500.0,0.00051506,60]
[314301395,1708164666830,-500.0,0.00051506,60]
[314301396,1708164666839,-500.0,0.00051506,60]
[314301397,1708164666848,-500.0,0.00051506,60]
[314301398,1708164666857,-500.0,0.00051506,7]
[314301399,1708164666868,-500.0,0.00051506,60]
[314301400,1708164666878,-500.0,0.00051506,60]
[314301401,1708164666889,-500.0,0.00051506,60]
[314301402,1708164666898,-500.0,0.00051506,60]
[314301403,1708164666907,-784.42,0.00051506,60]
[314301404,1708164666918,-500.0,0.00051506,60]
[314301405,1708164666927,-962.96,0.00051506,60]
[314301406,1708164666937,-2128.31,0.00051506,60]
[314301407,1708164666947,-500.0,0.00051506,60]
[314301408,1708164666956,-500.0,0.00051506,60]
[314301409,1708164666968,-500.0,0.00051506,60]
[314301410,1708164666977,-500.0,0.00051506,60]
[314301411,1708164666987,-500.0,0.00051506,60]
[314301412,1708164666996,-3483.63,0.00051506,60]
[314301413,1708164667006,-500.0,0.00051506,60]
[314301414,1708164667015,-500.0,0.00051506,60]
[314301415,1708164667028,-500.0,0.00051506,60]
[314301416,1708164667038,-500.0,0.00051506,60]
[314301417,1708164667048,-621.1,0.00051506,60]
[314301418,1708164667058,-260.98208798,0.00051506,60]
[314301419,1708164667067,-500.0,0.00051506,60]
[314301420,1708164667185,-500.0,0.00051506,60]
[314301421,1708164667195,-500.0,0.00051506,60]
[314301422,1708164667204,-2210.94,0.00051506,60]
[314301423,1708164667213,-500.0,0.00051506,60]
[314301424,1708164667223,-500.0,0.00051506,60]
[314301425,1708164667232,-500.0,0.00051506,60]
[314301426,1708164667241,-500.0,0.00051506,60]
[314301427,1708164667250,-500.0,0.00051506,60]
[314301428,1708164667259,-542.67036706,0.00051506,60]
[314301429,1708164667269,-822.01,0.00051506,14]
[314301430,1708164667279,-500.0,0.00051506,60]
[314301431,1708164667289,-1288.91,0.00051506,60]
[314301432,1708164667298,-4501.31,0.00051506,60]
[314301433,1708164667307,-500.0,0.00051506,60]
[314301434,1708164667316,-542.68,0.00051506,60]
[314301435,1708164667325,-500.0,0.00051506,60]
[314301436,1708164667335,-500.0,0.00051506,60]
[314301437,1708164667344,-500.0,0.00051506,60]
[314301438,1708164667353,-500.0,0.00051506,60]
[314301439,1708164667362,-500.0,0.00051506,60]
[314301440,1708164667372,-500.0,0.00051506,60]
[314301441,1708164667381,-500.0,0.00051506,60]
[314301442,1708164667390,-500.0,0.00051506,60]
[314301443,1708164667399,-615.51,0.00051506,60]
[314301444,1708164667409,-500.0,0.00051506,60]
[314301445,1708164667418,-500.0,0.00051506,60]
[314301446,1708164667427,-1497.63,0.00051506,60]
[314301447,1708164667436,-7291.56,0.00051506,60]
[314301448,1708164667445,-500.0,0.00051506,60]
[314301449,1708164667454,-500.0,0.00051506,60]
[314301450,1708164667464,-500.0,0.00051506,60]
[314301451,1708164667473,-500.0,0.00051506,60]
[314301452,1708164667483,-652.98,0.00051506,60]
[314301453,1708164667493,-500.0,0.00051506,60]
[314301454,1708164667502,-500.0,0.00051506,60]
[314301455,1708164667511,-500.0,0.00051506,60]
[314301456,1708164667521,-802.38,0.00051506,60]
[314301457,1708164667534,-1324.79,0.00051506,60]
[314301458,1708164667545,-791.76,0.00051506,60]
[314301459,1708164667554,-785.4,0.00051506,60]
[314301460,1708164667564,-500.0,0.00051506,60]
[314301461,1708164667574,-500.0,0.00051506,60]
[314301462,1708164667583,-500.0,0.00051506,60]
[314301463,1708164667593,-500.0,0.00051506,60]
[314301464,1708164667603,-500.0,0.00051506,60]
[314301465,1708164667613,-500.0,0.00051506,60]
[314301466,1708164667623,-500.0,0.00051506,60]
[314301467,1708164667632,-1013.43,0.00051506,60]
[314301468,1708164667642,-500.0,0.00051506,60]
[314301469,1708164667651,-17904.28,0.00051506,60]
[314301470,1708164667660,-500.0,0.00051506,60]
[314301471,1708164667669,-5229.57,0.00051506,60]
[314301472,1708164667679,-500.0,0.00051506,60]
[314301473,1708164667690,-500.0,0.00051506,60]
[314301474,1708164667702,-500.0,0.00051506,60]
[314301475,1708164667711,-500.0,0.00051506,60]
[314301476,1708164667721,-500.0,0.00051506,60]
[314301477,1708164667731,-500.0,0.00051506,60]
[314301478,1708164667740,-500.0,0.00051506,60]
[314301479,1708164667750,-713.58,0.00051506,60]
[314301480,1708164667761,-500.0,0.00051506,60]
[314301481,1708164667771,-500.0,0.00051506,60]
[314301482,1708164667781,-500.0,0.00051506,60]
[314301483,1708164667790,-152.49287195,0.00051506,60]
[314301484,1708164667799,-500.0,0.00051506,60]
[314301485,1708164667810,-586.76,0.00051506,60]
[314301486,1708164667821,-537.63,0.00051506,60]
[314301487,1708164667831,-500.0,0.00051506,60]
[314301488,1708164667840,-500.0,0.00051506,60]
[314301489,1708164667850,-196.409251,0.00051509,30]
[314301490,1708164667860,-174.472826,0.00051509,30]
[314301491,1708164667870,-158.166395,0.00051509,30]
[314301492,1708164667880,-196.409247,0.00051509,30]
[314301493,1708164667890,-188.0,0.00051559,60]
[314301494,1708164667901,-166.05101382,0.00051581,60]
[314301495,1708164667910,-152.0,0.00051628,5]
[314301496,1708164667920,-299.99999901,0.000517,30]
[314301497,1708164667930,-223.021788,0.00051748,101]
[314301498,1708164667939,-200.0,0.00051777,82]
[314301499,1708164667949,-200.0,0.00051777,80]
[314301500,1708164667960,-200.0,0.00051777,77]
[314301501,1708164667969,-500.0,0.0005178,2]
[314301502,1708164667978,-500.0,0.0005178,60]
[314301503,1708164667988,-500.0,0.0005178,2]
[314301504,1708164667997,-500.0,0.0005178,60]
[314301505,1708164668006,-500.0,0.0005178,60]
[314301506,1708164668015,-500.0,0.0005178,60]
[314301507,1708164668024,-500.0,0.0005178,60]
[314301508,1708164668033,-500.0,0.0005178,2]
[314301509,1708164668043,-500.0,0.0005178,60]
[314301510,1708164668053,-500.0,0.0005178,2]
[314301511,1708164668062,-500.0,0.0005178,60]
[314301512,1708164668074,-500.0,0.0005178,2]
[314301513,1708164668083,-711.3,0.0005178,2]
[314301514,1708164668093,-500.0,0.0005178,60]
[314301515,1708164668104,-500.0,0.0005178,60]
[314301516,1708164668113,-500.0,0.0005178,60]
[314301517,1708164668124,-326.2436448,0.0005178,60]
[314301518,1708164668133,-500.0,0.0005178,60]
[314301519,1708164668143,-500.0,0.0005178,60]
[314301520,1708164668153,-150.0,0.0005178,60]
[314301521,1708164668162,-500.0,0.0005178,60]
[314301522,1708164668171,-155.58994944,0.0005178,60]
[314301523,1708164668181,-513.10330225,0.0005178,2]
[314301524,1708164668192,-500.0,0.0005178,60]
[314301525,1708164668202,-500.0,0.0005178,60]
[314301526,1708164668211,-500.0,0.0005178,60]
[314301527,1708164668222,-500.0,0.0005178,60]
[314301528,1708164668233,-500.0,0.0005178,7]
[314301529,1708164668243,-500.0,0.0005178,60]
[314301530,1708164668253,-228.9310657,0.0005178,60]
[314301531,1708164668264,-500.0,0.0005178,60]
[314301532,1708164668273,-500.0,0.0005178,60]
[314301533,1708164668283,-784.42,0.0005178,60]
[314301534,1708164668293,-500.0,0.0005178,60]